[Event "44th Chess Olympiad Open 2022"]
[Site "Chennai"]
[Date "2022.08.05"]
[Round "7.69"]
[White "Giasi, Viresh"]
[Black "Altell, Majed"]
[Result "1-0"]
[WhiteElo "2006"]
[BlackElo "1807"]
[Annotator "NA"]
[PlyCount "83"]
[EventDate "2022.??.??"]
[TimeControl "60"]

1. e4 {[%emt 0:00:19]} c6 {[%emt 0:00:05]} 2. d3 {[%emt 0:04:27]} d5 {[%emt 0:
00:00]} 3. Be2 {[%emt 0:00:17]} dxe4 {[%emt 0:08:00]} 4. dxe4 {[%emt 0:00:08]}
Qxd1+ {[%emt 0:00:12]} 5. Bxd1 {[%emt 0:00:07]} e5 {[%emt 0:00:39]} 6. Nf3 {
[%emt 0:00:35]} Bd6 {[%emt 0:01:15]} 7. Nbd2 {[%emt 0:00:25]} f6 {[%emt 0:00:
00]} 8. Nc4 {[%emt 0:06:40]} Bc7 {[%emt 0:01:01]} 9. b3 {[%emt 0:00:23]} b5 {
[%emt 0:01:27]} 10. Ne3 {[%emt 0:00:32]} Ne7 {[%emt 0:00:43]} 11. O-O {[%emt 0:
00:00]} Nd7 {[%emt 0:03:51]} 12. Ba3 {[%emt 0:01:51]} a5 {[%emt 0:01:30]} 13.
c3 {[%emt 0:06:33]} Bb6 {[%emt 0:21:33]} 14. Nh4 {[%emt 0:12:02]} Bc5 {[%emt 0:
00:00]} 15. Bxc5 {[%emt 0:02:19]} Nxc5 {[%emt 0:01:25]} 16. Bc2 {[%emt 0:02:59]
} g5 {[%emt 0:01:54]} 17. Nhf5 {[%emt 0:01:59]} Nxf5 {[%emt 0:01:31]} 18. exf5
{[%emt 0:00:19]} Ke7 {[%emt 0:02:55]} 19. b4 {[%emt 0:12:36]} Nb7 {[%emt 0:00:
00]} 20. a4 {[%emt 0:00:00]} Bd7 {[%emt 0:00:53]} 21. axb5 {[%emt 0:00:00]}
axb4 {[%emt 0:08:01]} 22. cxb4 {[%emt 0:06:12]} cxb5 {[%emt 0:02:34]} 23. Nd5+
{[%emt 0:00:51]} Kf7 {[%emt 0:00:57]} 24. Nb6 {[%emt 0:01:32]} Rxa1 {[%emt 0:
00:00]} 25. Rxa1 {[%emt 0:00:01]} Bc6 {[%emt 0:01:33]} 26. Bb3+ {[%emt 0:00:34]
} Kg7 {[%emt 0:01:49]} 27. Rc1 {[%emt 0:00:28]} Nd8 {[%emt 0:01:28]} 28. f3 {
[%emt 0:02:15]} Re8 {[%emt 0:01:04]} 29. Nc8 {[%emt 0:04:44]} e4 {[%emt 0:00:
00]} 30. Nd6 {[%emt 0:04:44]} Re7 {[%emt 0:01:15]} 31. fxe4 {[%emt 0:00:44]}
Rd7 {[%emt 0:01:46]} 32. Ne8+ {[%emt 0:00:36]} Kf8 {[%emt 0:00:59]} 33. Nxf6 {
[%emt 0:00:07]} Rd3 {[%emt 0:00:50]} 34. Bd5 {[%emt 0:06:09]} Bxd5 {[%emt 0:00:
00]} 35. Nxd5 {[%emt 0:00:07]} Nf7 {[%emt 0:00:45]} 36. Rc8+ {[%emt 0:00:54]}
Kg7 {[%emt 0:00:09]} 37. f6+ {[%emt 0:00:22]} Kh6 {[%emt 0:00:36]} 38. h3 {
[%emt 0:02:12]} Rd2 {[%emt 0:01:06]} 39. Ne7 {[%emt 0:01:25]} Re2 {[%emt 0:00:
00]} 40. Rg8 {[%emt 0:00:32]} Ne5 {[%emt 0:05:14]} 41. Nf5+ {[%emt 0:31:10]}
Kh5 {[%emt 0:30:08]} 42. Ng3+ {[%emt 0:00:03]} 1-0

[Event "44th Chess Olympiad Open 2022"]
[Site "Chennai"]
[Date "2022.08.05"]
[Round "7.69"]
[White "Miswadah, Baha"]
[Black "Kalidjo, Imaan"]
[Result "1-0"]
[WhiteElo "1985"]
[BlackElo "1819"]
[Annotator "NA"]
[PlyCount "81"]
[EventDate "2022.??.??"]
[TimeControl "60"]

1. d4 {[%emt 0:00:03]} Nf6 {[%emt 0:00:19]} 2. Bf4 {[%emt 0:00:13]} e6 {
[%emt 0:00:46]} 3. e3 {[%emt 0:00:07]} b6 {[%emt 0:00:38]} 4. Nf3 {[%emt 0:00:
00]} Bb7 {[%emt 0:00:18]} 5. Nbd2 {[%emt 0:00:14]} d5 {[%emt 0:01:29]} 6. Bd3 {
[%emt 0:00:10]} Nbd7 {[%emt 0:03:25]} 7. c3 {[%emt 0:01:07]} Ne4 {[%emt 0:00:
00]} 8. Qe2 {[%emt 0:03:30]} a6 {[%emt 0:02:53]} 9. Ne5 {[%emt 0:06:48]} Nxe5 {
[%emt 0:09:24]} 10. Bxe5 {[%emt 0:00:27]} f6 {[%emt 0:09:40]} 11. Bg3 {[%emt 0:
00:00]} Qd7 {[%emt 0:02:28]} 12. a3 {[%emt 0:02:25]} Bd6 {[%emt 0:08:03]} 13.
Bxd6 {[%emt 0:01:57]} cxd6 {[%emt 0:03:42]} 14. f3 {[%emt 0:01:21]} Nxd2 {
[%emt 0:01:50]} 15. Qxd2 {[%emt 0:00:13]} Bc6 {[%emt 0:10:58]} 16. Qe2 {
[%emt 0:02:25]} e5 {[%emt 0:03:05]} 17. Qc2 {[%emt 0:07:29]} g6 {[%emt 0:05:16]
} 18. O-O-O {[%emt 0:07:52]} b5 {[%emt 0:15:31]} 19. e4 {[%emt 0:11:40]} Qf7 {
[%emt 0:00:33]} 20. exd5 {[%emt 0:07:25]} Bxd5 {[%emt 0:02:06]} 21. Qe2 {
[%emt 0:01:59]} O-O {[%emt 0:08:01]} 22. Be4 {[%emt 0:00:53]} Bxe4 {[%emt 0:00:
00]} 23. Qxe4 {[%emt 0:01:45]} Qc4 {[%emt 0:04:38]} 24. Rhe1 {[%emt 0:02:06]}
Rad8 {[%emt 0:00:23]} 25. Qd3 {[%emt 0:08:27]} Qxd3 26. Rxd3 Kf7 {[%emt 0:00:
00]} 27. Kc2 {[%emt 0:00:49]} Ke6 {[%emt 0:00:46]} 28. f4 {[%emt 0:00:41]} h5 {
[%emt 0:00:40]} 29. Rde3 {[%emt 0:00:45]} f5 {[%emt 0:00:34]} 30. dxe5 {
[%emt 0:00:53]} d5 {[%emt 0:00:04]} 31. Rd3 {[%emt 0:00:44]} Rd7 {[%emt 0:00:
00]} 32. Rd4 {[%emt 0:00:04]} h4 {[%emt 0:00:47]} 33. a4 {[%emt 0:00:40]} Ra8 {
[%emt 0:00:50]} 34. Ra1 {[%emt 0:00:27]} Rda7 {[%emt 0:00:29]} 35. Rb4 {
[%emt 0:00:49]} bxa4 {[%emt 0:00:20]} 36. Rb6+ {[%emt 0:00:20]} Kf7 {[%emt 0:
00:00]} 37. Rd6 {[%emt 0:01:05]} Rb7 {[%emt 0:00:10]} 38. Rxa4 {[%emt 0:00:29]}
Rab8 {[%emt 0:00:10]} 39. b4 {[%emt 0:01:02]} Rb6 {[%emt 0:00:49]} 40. Rxd5 {
[%emt 0:00:37]} Ke6 {[%emt 0:00:04]} 41. Rda5 {[%emt 0:30:10]} 1-0

[Event "44th Chess Olympiad Open 2022"]
[Site "Chennai"]
[Date "2022.08.05"]
[Round "7.69"]
[White "Shawabke Ziyad"]
[Black "Gajadin, Dewperkash"]
[Result "0-1"]
[WhiteElo "1786"]
[BlackElo "1990"]
[Annotator "NA RC"]
[PlyCount "176"]
[EventDate "2022.??.??"]
[TimeControl "60"]

1. c4 {[%emt 0:01:52]} c5 {[%emt 0:00:11]} 2. Nf3 {[%emt 0:00:18]} Nf6 {
[%emt 0:00:04]} 3. Nc3 {[%emt 0:00:16]} b6 {[%emt 0:04:46]} 4. e3 {[%emt 0:00:
00]} g6 {[%emt 0:08:07]} 5. d4 {[%emt 0:00:32]} cxd4 {[%emt 0:00:48]} 6. exd4 {
[%emt 0:00:22]} Bg7 {[%emt 0:00:09]} 7. Be2 {[%emt 0:06:45]} O-O {[%emt 0:00:
00]} 8. O-O {[%emt 0:00:20]} Bb7 {[%emt 0:14:56]} 9. d5 {[%emt 0:01:37]} d6 {
[%emt 0:05:12]} 10. h3 {[%emt 0:03:06]} Nbd7 {[%emt 0:05:07]} 11. Be3 {[%emt 0:
00:00]} Rc8 {[%emt 0:02:23]} 12. Rc1 {[%emt 0:02:36]} Nc5 {[%emt 0:04:38]} 13.
b3 {[%emt 0:01:28]} Re8 {[%emt 0:02:26]} 14. Re1 {[%emt 0:03:13]} a6 {[%emt 0:
00:00]} 15. Bf4 {[%emt 0:17:05]} Nfe4 {[%emt 0:11:36]} 16. Nxe4 {[%emt 0:01:48]
} Nxe4 {[%emt 0:00:00]} 17. Bf1 {[%emt 0:08:58]} Nf6 18. Qd2 {[%emt 0:18:42]}
Nh5 {[%emt 0:05:30]} 19. Bh6 {[%emt 0:00:00]} Bh8 {[%emt 0:00:00]} 20. Nd4 {
[%emt 0:00:00]} Qd7 {[%emt 0:07:43]} 21. g4 {[%emt 0:00:49]} Ng7 {[%emt 0:00:
00]} 22. Bg2 {[%emt 0:00:24]} e5 {[%emt 0:03:05]} 23. dxe6 {[%emt 0:02:28]}
Nxe6 {[%emt 0:00:00]} 24. Bxb7 {[%emt 0:06:21]} Nxd4 {[%emt 0:08:36]} 25. Bg2 {
[%emt 0:00:23]} Rxe1+ {[%emt 0:00:00]} 26. Rxe1 {[%emt 0:00:02]} Re8 {[%emt 0:
00:00]} 27. Be3 {[%emt 0:00:29]} Qc7 {[%emt 0:00:22]} 28. Rd1 {[%emt 0:01:11]}
Ne6 {[%emt 0:00:00]} 29. Qd5 {[%emt 0:02:57]} Be5 {[%emt 0:00:00]} 30. Qb7 {
[%emt 0:01:50]} Qxb7 {[%emt 0:00:18]} 31. Bxb7 Nc5 {[%emt 0:00:26]} 32. Bg2 Rd8
{[%emt 0:00:28]} 33. f4 {[%emt 0:01:03]} Bc3 {[%emt 0:00:22]} 34. Kf2 {[%emt 0:
00:00]} a5 {[%emt 0:00:17]} 35. Bd4 {[%emt 0:05:10]} Bxd4+ {[%emt 0:00:22]} 36.
Rxd4 {[%emt 0:00:03]} Ne6 {[%emt 0:00:48]} 37. Re4 {[%emt 0:00:25]} Kg7 {
[%emt 0:00:25]} 38. f5 {[%emt 0:03:32]} gxf5 {[%emt 0:00:22]} 39. gxf5 {
[%emt 0:00:04]} Nc5 {[%emt 0:00:23]} 40. Rd4 {[%emt 0:00:44]} Kf6 {[%emt 0:00:
00]} 41. Rd5 {[%emt 0:32:26]} Ke7 {[%emt 0:31:21]} 42. h4 {[%emt 0:00:00]} f6
43. Rd4 {[%emt 0:20:12]} Rg8 {[%emt 0:00:00]} 44. Bf3 {[%emt 0:00:00]} Nd7 {
[%emt 0:05:40]} 45. Rg4 {[%emt 0:00:00]} Rxg4 {[%emt 0:00:00]} 46. Bxg4 {
[%emt 0:00:00]} Ne5 47. Be2 {[%emt 0:00:00]} Kd7 {[%emt 0:00:00]} 48. Ke3 {
[%emt 0:00:00]} Kc6 {[%emt 0:04:34]} 49. Kd4 {[%emt 0:00:00]} Kd7 {[%emt 0:00:
00]} 50. a3 {[%emt 0:03:30]} Nc6+ {[%emt 0:00:00]} 51. Ke4 {[%emt 0:00:00]} Ne7
{[%emt 0:00:00]} 52. Bf3 {[%emt 0:00:00]} d5+ 53. cxd5 {[%emt 0:04:43]} Kd6 {
[%emt 0:00:00]} 54. Kf4 {[%emt 0:02:52]} Nxd5+ {[%emt 0:00:00]} 55. Ke4 {
[%emt 0:00:14]} Kc5 {[%emt 0:00:00]} 56. Kd3 {[%emt 0:00:00]} Ne7 57. Ke4 {
[%emt 0:01:40]} b5 {[%emt 0:00:00]} 58. Bd1 {[%emt 0:00:00]} Nd5 {[%emt 0:00:
00]} 59. Kd3 {[%emt 0:00:00]} Nf4+ {[%emt 0:00:00]} 60. Ke4 {[%emt 0:00:00]}
Nd5 {[%emt 0:00:00]} 61. Kd3 {[%emt 0:00:00]} Ne7 {[%emt 0:00:39]} 62. Ke4 {
[%emt 0:00:00]} Nc6 {[%emt 0:00:00]} 63. Kf4 {[%emt 0:00:00]} Ne5 {[%emt 0:00:
00]} 64. Ke4 {[%emt 0:00:00]} h6 {[%emt 0:00:00]} 65. Be2 {[%emt 0:00:00]} Nc6
{[%emt 0:00:00]} 66. Bd1 {[%emt 0:00:00]} b4 {[%emt 0:00:16]} 67. a4 Nd4 {
[%emt 0:00:32]} 68. h5 {[%emt 0:00:00]} Nc6 {[%emt 0:00:32]} 69. Be2 {[%emt 0:
00:00]} Ne5 {[%emt 0:00:25]} 70. Bf1 {[%emt 0:00:00]} Nf7 {[%emt 0:00:12]} 71.
Bc4 {[%emt 0:00:00]} Nd6+ {[%emt 0:00:32]} 72. Kd3 {[%emt 0:00:00]} Nxc4 {
[%emt 0:00:03]} 73. bxc4 {[%emt 0:00:00]} b3 {[%emt 0:00:15]} 74. Kc3 {[%emt 0:
00:00]} b2 {[%emt 0:00:08]} 75. Kxb2 {[%emt 0:00:00]} Kxc4 76. Ka3 {[%emt 0:00:
00]} Kc3 {[%emt 0:00:31]} 77. Ka2 {[%emt 0:00:09]} Kb4 {[%emt 0:00:51]} 78. Kb2
{[%emt 0:00:00]} Kxa4 {[%emt 0:00:09]} 79. Kc3 {[%emt 0:00:40]} Kb5 {[%emt 0:
00:00]} 80. Kb3 {[%emt 0:00:00]} Kc5 {[%emt 0:00:09]} 81. Ka4 {[%emt 0:00:00]}
Kd5 82. Kxa5 {[%emt 0:00:20]} Ke5 {[%emt 0:01:24]} 83. Kb4 {[%emt 0:00:00]}
Kxf5 {[%emt 0:00:11]} 84. Kc4 {[%emt 0:00:15]} Kg4 {[%emt 0:00:10]} 85. Kd4 {
[%emt 0:00:03]} f5 {[%emt 0:00:27]} 86. Ke3 {[%emt 0:00:00]} Kg3 87. Ke2 f4 {
[%emt 0:01:31]} 88. Kf1 {[%emt 0:00:00]} Kf3 {[%emt 0:06:48]} 0-1

[Event "44th Chess Olympiad Open 2022"]
[Site "Chennai"]
[Date "2022.08.05"]
[Round "7.70"]
[White "Alhassadi, Yousef A."]
[Black "Cisse, Amadou Lamine"]
[Result "1-0"]
[WhiteElo "2068"]
[BlackElo "2005"]
[Annotator "NA RC"]
[PlyCount "31"]
[EventDate "2022.??.??"]
[TimeControl "60"]

1. e4 {[%emt 0:00:03]} c5 {[%emt 0:00:18]} 2. c3 {[%emt 0:00:06]} d5 {[%emt 0:
00:00]} 3. exd5 {[%emt 0:00:07]} Qxd5 {[%emt 0:00:25]} 4. Nf3 {[%emt 0:00:04]}
Nc6 {[%emt 0:00:51]} 5. Na3 {[%emt 0:00:06]} Nf6 {[%emt 0:02:31]} 6. Bc4 {
[%emt 0:03:27]} Qe4+ {[%emt 0:01:26]} 7. Be2 {[%emt 0:00:11]} Bg4 {[%emt 0:00:
00]} 8. d3 {[%emt 0:02:36]} Qd5 {[%emt 0:01:30]} 9. Nc4 {[%emt 0:02:07]} Bh5 {
[%emt 0:05:29]} 10. Qb3 {[%emt 0:06:50]} O-O-O {[%emt 0:03:20]} 11. O-O {
[%emt 0:00:31]} h6 {[%emt 0:03:46]} 12. Bf4 {[%emt 0:12:10]} g5 {[%emt 0:03:52]
} 13. Bg3 {[%emt 0:00:11]} Bg4 {[%emt 0:04:55]} 14. Qa4 {[%emt 0:04:51]} Bd7 {
[%emt 0:04:55]} 15. Qxa7 {[%emt 0:00:11]} e5 {[%emt 0:10:35]} 16. Nb6+ {
[%emt 0:00:23]} 1-0

[Event "44th Chess Olympiad Open 2022"]
[Site "Chennai"]
[Date "2022.08.05"]
[Round "7.70"]
[White "Abugenda, Nagi"]
[Black "Wane, Al Hassane"]
[Result "1-0"]
[WhiteElo "1991"]
[BlackElo "1750"]
[Annotator "NA RC"]
[PlyCount "91"]
[EventDate "2022.??.??"]
[TimeControl "60"]

1. e4 {[%emt 0:00:04]} Nc6 {[%emt 0:00:27]} 2. Nf3 {[%emt 0:00:13]} e5 {
[%emt 0:00:34]} 3. Bc4 {[%emt 0:00:33]} Be7 {[%emt 0:00:09]} 4. d4 {[%emt 0:00:
00]} exd4 {[%emt 0:01:29]} 5. O-O {[%emt 0:00:15]} Nf6 {[%emt 0:00:10]} 6. e5 {
[%emt 0:00:13]} Ne4 {[%emt 0:04:45]} 7. Re1 {[%emt 0:02:36]} d5 {[%emt 0:00:40]
} 8. Bb5 {[%emt 0:00:08]} O-O {[%emt 0:00:24]} 9. Bxc6 {[%emt 0:00:37]} bxc6 {
[%emt 0:00:14]} 10. Nxd4 {[%emt 0:00:27]} Qe8 {[%emt 0:03:03]} 11. f3 {[%emt 0:
00:00]} Ng5 {[%emt 0:02:47]} 12. f4 {[%emt 0:00:59]} Ne4 {[%emt 0:00:20]} 13.
Be3 {[%emt 0:00:32]} c5 {[%emt 0:01:03]} 14. Nb3 {[%emt 0:00:39]} c6 {[%emt 0:
00:00]} 15. N1d2 {[%emt 0:01:51]} Nxd2 {[%emt 0:07:43]} 16. Qxd2 {[%emt 0:00:
00]} d4 {[%emt 0:02:39]} 17. Bf2 {[%emt 0:00:06]} Qd8 {[%emt 0:01:57]} 18. Rad1
{[%emt 0:03:13]} Bg4 {[%emt 0:03:13]} 19. Rc1 {[%emt 0:01:38]} Qd5 {[%emt 0:00:
00]} 20. c3 {[%emt 0:03:37]} Rfd8 {[%emt 0:07:51]} 21. cxd4 {[%emt 0:04:46]}
cxd4 {[%emt 0:07:18]} 22. Qxd4 {[%emt 0:03:21]} Qb5 {[%emt 0:00:40]} 23. Qe4 {
[%emt 0:04:10]} Bb4 {[%emt 0:05:55]} 24. Re3 {[%emt 0:08:29]} Rd1+ {[%emt 0:00:
00]} 25. Rxd1 {[%emt 0:02:27]} Bxd1 {[%emt 0:00:13]} 26. Qd3 {[%emt 0:02:06]}
Bxb3 {[%emt 0:03:16]} 27. Qxb5 {[%emt 0:01:39]} cxb5 {[%emt 0:00:21]} 28. Rxb3
{[%emt 0:00:13]} Bd2 {[%emt 0:01:01]} 29. Rxb5 {[%emt 0:00:46]} Bxf4 {[%emt 0:
00:00]} 30. Bxa7 {[%emt 0:01:20]} h6 {[%emt 0:00:49]} 31. Rb8+ {[%emt 0:00:20]}
Rxb8 {[%emt 0:00:53]} 32. Bxb8 {[%emt 0:00:05]} f6 {[%emt 0:00:18]} 33. g3 {
[%emt 0:00:27]} Be3+ {[%emt 0:01:14]} 34. Kg2 {[%emt 0:00:54]} Bd4 {[%emt 0:00:
00]} 35. b4 {[%emt 0:02:31]} fxe5 {[%emt 0:00:51]} 36. a4 {[%emt 0:00:15]} e4 {
[%emt 0:04:15]} 37. a5 {[%emt 0:00:38]} Kf7 {[%emt 0:01:48]} 38. a6 {[%emt 0:
00:00]} Ke6 {[%emt 0:01:56]} 39. a7 {[%emt 0:00:13]} Bxa7 {[%emt 0:00:12]} 40.
Bxa7 {[%emt 0:00:11]} Kd6 {[%emt 0:00:31]} 41. Kf2 {[%emt 0:30:16]} g5 {
[%emt 0:30:29]} 42. Ke3 {[%emt 0:00:11]} Kd5 {[%emt 0:00:20]} 43. b5 {[%emt 0:
00:00]} h5 {[%emt 0:00:24]} 44. b6 {[%emt 0:00:10]} h4 {[%emt 0:01:10]} 45. b7
{[%emt 0:00:10]} hxg3 {[%emt 0:00:19]} 46. b8=Q {[%emt 0:00:30]} 1-0

[Event "44th Chess Olympiad Open 2022"]
[Site "Chennai"]
[Date "2022.08.05"]
[Round "7.70"]
[White "Lesbros Bernard"]
[Black "Fates, Omer Salah"]
[Result "1-0"]
[WhiteElo "1865"]
[BlackElo "1940"]
[Annotator "NA RC"]
[PlyCount "43"]
[EventDate "2022.??.??"]
[TimeControl "60"]

1. Nf3 {[%emt 0:00:03]} Nf6 {[%emt 0:00:09]} 2. c4 {[%emt 0:00:11]} g6 {
[%emt 0:01:11]} 3. g3 {[%emt 0:00:44]} Bg7 {[%emt 0:00:21]} 4. Bg2 {[%emt 0:00:
00]} d6 {[%emt 0:01:05]} 5. d4 {[%emt 0:00:15]} O-O {[%emt 0:00:40]} 6. O-O {
[%emt 0:00:40]} c6 {[%emt 0:01:48]} 7. Nc3 {[%emt 0:00:10]} Bd7 {[%emt 0:01:10]
} 8. Re1 {[%emt 0:03:17]} Qc7 {[%emt 0:04:12]} 9. e4 {[%emt 0:02:49]} e5 {
[%emt 0:01:06]} 10. b3 {[%emt 0:06:09]} Re8 {[%emt 0:04:43]} 11. Bb2 {[%emt 0:
00:00]} Na6 {[%emt 0:05:23]} 12. Rc1 {[%emt 0:06:44]} Bg4 {[%emt 0:01:50]} 13.
Qd2 {[%emt 0:07:34]} Bxf3 {[%emt 0:03:12]} 14. Bxf3 {[%emt 0:00:09]} exd4 {
[%emt 0:00:26]} 15. Qxd4 {[%emt 0:00:42]} Nxe4 {[%emt 0:01:23]} 16. Qxg7+ {
[%emt 0:00:18]} Kxg7 {[%emt 0:00:36]} 17. Nd5+ {[%emt 0:00:07]} f6 {[%emt 0:00:
00]} 18. Nxc7 {[%emt 0:01:28]} Nxc7 {[%emt 0:00:52]} 19. Rxe4 {[%emt 0:02:37]}
Ne6 {[%emt 0:03:45]} 20. h4 {[%emt 0:04:33]} Nc5 {[%emt 0:00:00]} 21. Rxe8 {
[%emt 0:02:02]} Rxe8 {[%emt 0:01:44]} 22. Rd1 {[%emt 0:00:33]} 1-0

[Event "44th Chess Olympiad Open 2022"]
[Site "Chennai"]
[Date "2022.08.05"]
[Round "7.70"]
[White "Badji, Sekou Aransbene"]
[Black "Naser Eldean, Ahmed"]
[Result "0-1"]
[WhiteElo "1732"]
[BlackElo "1941"]
[Annotator "NA"]
[PlyCount "80"]
[EventDate "2022.??.??"]
[TimeControl "60"]

1. d4 {[%emt 0:00:03]} Nf6 {[%emt 0:00:06]} 2. c4 {[%emt 0:00:38]} g6 {[%emt 0:
00:00]} 3. Nf3 {[%emt 0:01:15]} Bg7 {[%emt 0:00:09]} 4. Nc3 {[%emt 0:00:31]}
O-O {[%emt 0:00:10]} 5. Bf4 {[%emt 0:04:42]} d6 {[%emt 0:00:29]} 6. e3 {
[%emt 0:00:57]} Nbd7 {[%emt 0:02:03]} 7. Be2 {[%emt 0:00:32]} a6 {[%emt 0:00:
00]} 8. h3 {[%emt 0:01:50]} Qe8 {[%emt 0:00:24]} 9. O-O {[%emt 0:01:54]} e5 {
[%emt 0:00:11]} 10. Bh2 {[%emt 0:02:21]} b6 {[%emt 0:00:52]} 11. Rc1 {[%emt 0:
00:00]} Bb7 {[%emt 0:00:00]} 12. d5 {[%emt 0:02:20]} e4 {[%emt 0:06:31]} 13.
Nd2 {[%emt 0:00:26]} a5 {[%emt 0:00:31]} 14. a3 {[%emt 0:02:54]} Qe7 {[%emt 0:
00:00]} 15. Qc2 {[%emt 0:04:19]} Rfe8 {[%emt 0:04:20]} 16. Bg3 {[%emt 0:03:49]}
h6 {[%emt 0:06:55]} 17. Nb5 {[%emt 0:05:36]} Nc5 {[%emt 0:09:30]} 18. b4 {
[%emt 0:06:57]} Na6 {[%emt 0:00:00]} 19. Rb1 {[%emt 0:00:32]} Bc8 {[%emt 0:00:
00]} 20. Bh4 {[%emt 0:12:12]} g5 {[%emt 0:03:18]} 21. Bg3 {[%emt 0:00:20]} Bf5
{[%emt 0:03:00]} 22. Nd4 {[%emt 0:01:12]} Bg6 {[%emt 0:00:26]} 23. Nc6 {
[%emt 0:00:43]} Qd7 {[%emt 0:00:36]} 24. bxa5 {[%emt 0:07:16]} bxa5 {[%emt 0:
00:00]} 25. Nxa5 {[%emt 0:00:43]} Nc5 {[%emt 0:00:11]} 26. Nab3 {[%emt 0:04:46]
} Nd3 {[%emt 0:08:22]} 27. Bxd3 {[%emt 0:06:45]} exd3 {[%emt 0:00:06]} 28. Qa2
{[%emt 0:01:24]} Qa4 {[%emt 0:04:38]} 29. Nd4 {[%emt 0:10:43]} Nh5 {[%emt 0:00:
00]} 30. Rfe1 {[%emt 0:05:57]} Nxg3 {[%emt 0:03:21]} 31. fxg3 {[%emt 0:00:06]}
Rxe3 {[%emt 0:03:25]} 32. Nb5 {[%emt 0:02:00]} Rxe1+ {[%emt 0:02:43]} 33. Rxe1
{[%emt 0:00:14]} Qc2 {[%emt 0:00:11]} 34. Qxc2 {[%emt 0:02:31]} dxc2 {[%emt 0:
00:00]} 35. Nb3 {[%emt 0:02:11]} Bb2 {[%emt 0:05:02]} 36. Nxc7 {[%emt 0:02:00]}
Rxa3 {[%emt 0:02:57]} 37. Nc1 {[%emt 0:03:39]} Ra1 {[%emt 0:00:00]} 38. Nb5 {
[%emt 0:00:54]} Rxc1 {[%emt 0:00:00]} 39. Rxc1 {[%emt 0:00:07]} Bxc1 {[%emt 0:
00:00]} 40. Nxd6 {[%emt 0:01:10]} Be3+ {[%emt 0:00:00]} 0-1

[Event "44th Chess Olympiad Open 2022"]
[Site "Chennai"]
[Date "2022.08.05"]
[Round "7.71"]
[White "Mirulla, David"]
[Black "Neto, Roberto"]
[Result "1-0"]
[WhiteElo "1953"]
[BlackElo "1663"]
[Annotator "NA"]
[PlyCount "65"]
[EventDate "2022.??.??"]
[TimeControl "60"]

1. e4 {[%emt 0:00:06]} c5 {[%emt 0:00:19]} 2. Nf3 {[%emt 0:00:07]} Nc6 {
[%emt 0:00:10]} 3. d4 {[%emt 0:00:10]} cxd4 {[%emt 0:00:01]} 4. Nxd4 {[%emt 0:
00:00]} Nf6 {[%emt 0:00:09]} 5. Nc3 {[%emt 0:00:16]} e5 {[%emt 0:08:12]} 6.
Ndb5 {[%emt 0:00:15]} d6 {[%emt 0:00:17]} 7. a4 {[%emt 0:00:32]} a6 {[%emt 0:
00:00]} 8. Na3 {[%emt 0:00:11]} Be6 {[%emt 0:10:11]} 9. Bc4 {[%emt 0:26:04]}
Bxc4 {[%emt 0:09:12]} 10. Nxc4 {[%emt 0:00:10]} Nxe4 {[%emt 0:11:16]} 11. Nxe4
{[%emt 0:24:52]} d5 {[%emt 0:00:10]} 12. Bg5 {[%emt 0:03:54]} f6 {[%emt 0:00:
00]} 13. Bxf6 {[%emt 0:01:24]} gxf6 {[%emt 0:02:12]} 14. Qxd5 {[%emt 0:00:55]}
Qxd5 {[%emt 0:07:01]} 15. Nxf6+ {[%emt 0:00:14]} Kf7 {[%emt 0:00:42]} 16. Nxd5
{[%emt 0:00:11]} Bc5 {[%emt 0:02:14]} 17. c3 {[%emt 0:04:51]} Raf8 {[%emt 0:00:
00]} 18. Rf1 {[%emt 0:04:53]} Rd8 {[%emt 0:03:23]} 19. O-O-O {[%emt 0:02:04]}
b5 {[%emt 0:03:10]} 20. axb5 {[%emt 0:00:53]} axb5 {[%emt 0:00:08]} 21. Nce3 {
[%emt 0:00:51]} b4 {[%emt 0:02:43]} 22. Kc2 {[%emt 0:01:59]} Rb8 {[%emt 0:00:
00]} 23. Ra1 {[%emt 0:05:02]} b3+ {[%emt 0:05:09]} 24. Kd3 {[%emt 0:03:29]}
Rhe8 {[%emt 0:11:42]} 25. Ra6 {[%emt 0:04:34]} e4+ {[%emt 0:00:53]} 26. Kc4 {
[%emt 0:01:58]} Ne5+ {[%emt 0:04:27]} 27. Kxc5 {[%emt 0:00:26]} Rec8+ {[%emt 0:
00:00]} 28. Kd4 {[%emt 0:00:48]} Nd3 {[%emt 0:01:14]} 29. Rf6+ {[%emt 0:08:27]}
Kg7 {[%emt 0:01:45]} 30. Ra1 {[%emt 0:01:49]} Rf8 {[%emt 0:00:30]} 31. Ra7+ {
[%emt 0:01:43]} Kh8 {[%emt 0:00:23]} 32. Rh6 {[%emt 0:00:47]} Nxb2 {[%emt 0:00:
00]} 33. Rhxh7+ {[%emt 0:00:09]} 1-0

[Event "44th Chess Olympiad Open 2022"]
[Site "Chennai"]
[Date "2022.08.05"]
[Round "7.73"]
[White "Fuad, Ahmed Mufleh"]
[Black "Gurner, Jem"]
[Result "0-1"]
[WhiteElo "2086"]
[BlackElo "1800"]
[Annotator "NA"]
[PlyCount "102"]
[EventDate "2022.??.??"]
[TimeControl "60"]

1. d4 {[%emt 0:00:24]} g6 {[%emt 0:00:04]} 2. e4 {[%emt 0:00:29]} Bg7 {[%emt 0:
00:00]} 3. Be3 {[%emt 0:00:21]} d6 {[%emt 0:00:49]} 4. Bd3 {[%emt 0:01:15]} c5
{[%emt 0:02:45]} 5. c3 {[%emt 0:00:41]} cxd4 {[%emt 0:00:58]} 6. Bxd4 {[%emt 0:
00:00]} Nf6 {[%emt 0:01:08]} 7. Nd2 {[%emt 0:01:02]} O-O {[%emt 0:00:44]} 8.
Ne2 {[%emt 0:00:48]} Nc6 {[%emt 0:00:41]} 9. O-O {[%emt 0:03:19]} e5 {[%emt 0:
00:00]} 10. Be3 {[%emt 0:08:54]} Ng4 {[%emt 0:00:32]} 11. a4 {[%emt 0:02:16]}
Be6 {[%emt 0:05:42]} 12. Re1 {[%emt 0:05:38]} Nxe3 {[%emt 0:03:21]} 13. fxe3 {
[%emt 0:00:13]} Qb6 {[%emt 0:01:22]} 14. Nf1 {[%emt 0:00:28]} Qxb2 {[%emt 0:00:
00]} 15. Rb1 {[%emt 0:00:27]} Qa3 {[%emt 0:00:43]} 16. Rxb7 {[%emt 0:00:32]}
Rab8 {[%emt 0:06:05]} 17. Rxb8 {[%emt 0:13:11]} Rxb8 {[%emt 0:00:11]} 18. Qa1 {
[%emt 0:01:48]} Qxa1 {[%emt 0:08:12]} 19. Rxa1 {[%emt 0:00:10]} Na5 {[%emt 0:
00:00]} 20. Bb5 {[%emt 0:03:05]} Bc4 {[%emt 0:05:39]} 21. Nc1 {[%emt 0:08:38]}
Bh6 {[%emt 0:04:59]} 22. Bxc4 {[%emt 0:06:37]} Nxc4 {[%emt 0:00:08]} 23. Kf2 {
[%emt 0:00:56]} Rb2+ {[%emt 0:03:39]} 24. Kf3 {[%emt 0:00:16]} Rc2 {[%emt 0:00:
00]} 25. Ne2 {[%emt 0:01:21]} a5 {[%emt 0:03:50]} 26. Kf2 {[%emt 0:12:09]} Kf8
{[%emt 0:01:16]} 27. Kf3 {[%emt 0:01:09]} Ke7 {[%emt 0:00:27]} 28. Kf2 {
[%emt 0:00:10]} Ke6 {[%emt 0:01:06]} 29. Kf3 {[%emt 0:00:08]} Bg5 {[%emt 0:00:
00]} 30. g4 {[%emt 0:01:07]} Bd8 {[%emt 0:01:48]} 31. Kf2 {[%emt 0:00:24]} Bb6
{[%emt 0:00:47]} 32. Kf3 {[%emt 0:00:17]} Bc5 {[%emt 0:01:04]} 33. Kf2 {
[%emt 0:00:39]} Rb2 {[%emt 0:01:29]} 34. Kf3 {[%emt 0:00:50]} Rb3 {[%emt 0:00:
00]} 35. Kf2 {[%emt 0:00:34]} Ba3 {[%emt 0:07:37]} 36. Ke1 {[%emt 0:03:29]} Bb2
{[%emt 0:02:35]} 37. Rb1 {[%emt 0:01:01]} Bxc3+ {[%emt 0:02:48]} 38. Nxc3 {
[%emt 0:00:14]} Rxc3 {[%emt 0:00:07]} 39. Rb8 {[%emt 0:02:31]} Ra3 {[%emt 0:00:
00]} 40. Rh8 {[%emt 0:00:37]} Nxe3 {[%emt 0:00:49]} 41. Nxe3 {[%emt 0:30:44]}
Rxe3+ {[%emt 0:30:09]} 42. Kf2 {[%emt 0:00:07]} Rxe4 {[%emt 0:00:11]} 43. Kf3 {
[%emt 0:00:05]} Rf4+ {[%emt 0:00:45]} 44. Kg3 {[%emt 0:00:14]} Rxa4 {[%emt 0:
00:00]} 45. Rxh7 {[%emt 0:00:28]} Ra1 {[%emt 0:00:30]} 46. Rh8 {[%emt 0:00:32]}
a4 {[%emt 0:00:15]} 47. Ra8 {[%emt 0:02:06]} a3 {[%emt 0:00:11]} 48. Kg2 {
[%emt 0:00:28]} a2 {[%emt 0:00:15]} 49. Ra5 {[%emt 0:01:35]} e4 {[%emt 0:00:27]
} 50. Ra3 {[%emt 0:00:20]} Kf6 {[%emt 0:00:29]} 51. h4 {[%emt 0:00:12]} e3 {
[%emt 0:00:29]} 0-1